Cogmind - Beta 13 @@@ ROGUE MODE // 2024.04.01 @ 08:46:14 Player: Mantreise Result: Destroyed by D-53 Grenadier with Mini Grenade Launcher Performance ------------- Evolutions (0) 0 Regions Visited (2) 400 Robots Destroyed (21) 105 Value Destroyed (381) 381 Prototype IDs (4) 80 Alien Tech Used (0) 0 Bonus (0) 0 TOTAL SCORE: 966 Bonus ------- None Cogmind --------- Core Integrity 0/250 Matter 280/300 Energy 80/100 System Corruption 2% Temperature Cool (0) Movement Flying (35) Location -10/Mines Parts ------- > --- POWER (1) -------- (None) > --- PROPULSION (2) --- VTOL Module > --- UTILITY (2) ------ Signal Interpreter > --- WEAPON (2) ------- Rocket Launcher > --- INVENTORY (5) ---- Light Ion Engine Transport Network Coupler Peak State ------------ > --- POWER ------------ Light Nuclear Core > --- PROPULSION ------- VTOL Module VTOL Module > --- UTILITY ---------- Signal Interpreter Hacking Suite > --- WEAPON ----------- Assault Rifle Grenade Launcher > --- INVENTORY -------- Light Ion Engine [Rating: 13] Favorites ----------- Power Light Nuclear Core Engine Light Ion Engine Power Core Light Nuclear Core Propulsion VTOL Module Wheel Wheel Flight Unit VTOL Module Utility Hacking Suite Storage Medium Storage Unit Processor Signal Interpreter Hackware Hacking Suite Weapon Assault Rifle Ballistic Gun Assault Rifle Launcher Grenade Launcher Build | -11 -10 -10 ------- Run | Yrd Mat Min Slots Evolved . | . . . Power . | . . . Propulsion . | . . . Utility . | . . . Weapon . | . . . Parts Attached 16 | 5 10 1 Power 3 | 1 2 . Engine 2 | 1 1 . Core 1 | . 1 . Reactor . | . . . Propulsion 6 | 2 4 . Treads . | . . . Leg . | . . . Wheel 2 | 2 . . Hover . | . . . Flight 4 | . 4 . Utility 3 | . 3 . Device . | . . . Storage 1 | . 1 . Processor 1 | . 1 . Hackware 1 | . 1 . Protection . | . . . Artifact . | . . . Weapon 4 | 2 1 1 Energy Gun . | . . . Energy Cannon . | . . . Ballistic Gun 2 | 2 . . Ballistic Cannon . | . . . Launcher 2 | . 1 1 Special Weapon . | . . . Impact Weapon . | . . . Slashing Weapon . | . . . Piercing Weapon . | . . . Special Melee Weapon . | . . . Unidentified Prototypes . | . . . Parts Lost 6 | . 2 4 Power 2 | . 1 1 Propulsion 1 | . . 1 Utility 1 | . . 1 Weapon 2 | . 1 1 Highest Loss Streak 4 | . 1 4 To Critical Strikes . | . . . Average Slot Usage (%) 88 | . 89 75 Engine 2 | . 3 . Core 10 | . 10 11 Wheel 5 | . 6 . Flight 21 | . 21 25 Storage 2 | . 2 . Processor 8 | . 8 14 Hackware 9 | . 8 11 Ballistic Gun 16 | . 18 . Launcher 8 | . 7 11 Naked Turns . | . . . Heaviest Build 16 | 6 16 10 Greatest Support 20 | 20 20 8 Greatest Overweight (x) 3 | . 3 1 Average Overweight (x) . | . . . Largest Inventory Capacity 10 | 5 10 5 Average Capacity 5 | 5 6 5 Most Carried 4 | 3 4 3 Average Carried 1 | 1 1 2 Final Capacity 5 | 5 5 5 Final Carried 2 | 2 2 2 Class Distribution -------------------- 77% | Mutant 22% | Sprinter Dominant Class ---------------- Mutant | -10/Materials Sprinter | -10/Mines Resources | -11 -10 -10 ----------- Run | Yrd Mat Min Matter Collected 594 | 282 292 20 Remotely . | . . . Salvage Created 602 | 92 488 22 Parts 48 | 2 41 5 Haulers Intercepted 2 | . 2 . Recyclers Shooed . | . . . Parts Field Recycled . | . . . Retrieved Matter . | . . . Parts Self-Destructed . | . . . Prevented . | . . . Kills | -11 -10 -10 ------- Run | Yrd Mat Min Combat Hostiles Destroyed 12 | . 9 3 Guns 6 | . 6 . AOE 6 | . 3 3 Classes Destroyed 7 | 1 6 . Worker 1 | . 1 . Hauler 2 | . 2 . Recycler 1 | 1 . . Operator 2 | . 2 . Watcher 3 | . 3 . Swarmer 6 | . 3 3 Grunt 6 | . 6 . Best Kill Streak 5 | 1 5 3 Combat Bots Only 4 | . 4 3 Max Kills in Single Turn 3 | 1 1 3 Gunslinging . | . . . Exploded 3 | . 1 3 Melee . | . . . Uniques/NPCs Destroyed . | . . . Combat | -11 -10 -10 -------- Run | Yrd Mat Min Hostile Shots Fired 59 | . 52 7 Missed 17 | . 15 2 Damage Taken 690 | . 443 247 Core 250 | . 107 143 Absorbed by Shields . | . . . Core Remaining (%) 100 | 100 . . Volleys Fired 63 | 8 51 4 Largest 2 | 2 2 1 Hottest 40 | 40 40 30 Shots Fired 96 | 16 76 4 Gun 88 | 16 72 . Cannon . | . . . Launcher 8 | . 4 4 Special . | . . . Kinetic 88 | 16 72 . Thermal . | . . . Explosive 8 | . 4 4 Electromagnetic . | . . . Robot Hit Streak 8 | 8 8 3 Robot Miss Streak 4 | 2 4 1 Penetration Max . | . . . Secondary Targets 2 | . 2 . Max Gunslinging Chain 1 | . 1 . Shots Hit Robots 56 | 11 43 2 Core Hits 42 | 2 34 6 Critical Kills . | . . . Critical Parts Destroyed . | . . . Critical Strikes . | . . . Melee Attacks . | . . . Impact . | . . . Slashing . | . . . Piercing . | . . . Sneak Attacks . | . . . Combat Hostiles . | . . . Follow-up Attacks . | . . . Damage Inflicted 959 | 126 645 188 Guns 634 | 126 508 . Cannons . | . . . Explosions 325 | . 137 188 Melee . | . . . Ramming . | . . . Kinetic 634 | 126 508 . Thermal . | . . . Explosive 325 | . 137 188 Electromagnetic . | . . . Impact . | . . . Slashing . | . . . Piercing . | . . . Highest Corruption 2 | . 2 2 Average Corruption 2 | . 2 2 Corruption Purged . | . . . Corruption Blocked . | . . . Effects 4 | . 4 . Message Errors 1 | . 1 . Matter Fused 1 | . 1 . Data Loss (minor) 2 | . 2 . Overload Shots . | . . . Overflow Damage . | . . . Projectiles . | . . . Explosions . | . . . Melee . | . . . Knockbacks . | . . . Impact . | . . . Kinetic . | . . . Secondary . | . . . Self-Inflicted Damage 16 | . . 16 Shots 1 | . . 1 Rammed . | . . . Targets Rammed . | . . . Kicked . | . . . Crushed . | . . . Highest Temperature 15 | . 15 . Average Temperature 8 | . 8 . Received Heat Transfer 159 | . 159 . Siege Activations . | . . . Robots Corrupted . | . . . Combat Hostiles . | . . . Parts Fried . | . . . Impact Corruptions . | . . . Robots Melted . | . . . Combat Hostiles . | . . . Parts Melted . | . . . Heat Transferred . | . . . Parts Sabotaged . | . . . Parts Stolen . | . . . Parts Stripped . | . . . Power Chain Reactions . | . . . Alert | -11 -10 -10 ------- Run | Yrd Mat Min Peak Influence 182 | 5 182 124 Initial 47 | . 3 47 Average 66 | 1 68 122 Maximum Alert Level . | . . . Low Security (%) 100 | 100 100 100 Level 1 . | . . . Level 2 . | . . . Level 3 . | . . . Level 4 . | . . . Level 5 . | . . . High Security . | . . . Max Security . | . . . Squads Dispatched 2 | . 2 . Investigation 1 | . 1 . Extermination . | . . . Reinforcement 1 | . 1 . Assault . | . . . Garrison . | . . . Intercept . | . . . Searches Triggered . | . . . Construction Impeded . | . . . Haulers Reinforced . | . . . Active Scanning Responses . | . . . Cargo Convoy Interrupts . | . . . Stealth | -11 -10 -10 --------- Run | Yrd Mat Min Distress Signals 1 | . 1 . Communications Jammed . | . . . Distress Signals . | . . . Times Spotted 29 | . 19 10 Peak Tracking Total 19 | . 6 19 Tactical Retreats 1 | . 1 . Traps | -11 -10 -10 ------- Run | Yrd Mat Min Traps Triggered 1 | . 1 . Indirectly . | . . . Trap Hack Attempts . | . . . Triggered . | . . . Disarmed . | . . . Reprogrammed . | . . . Reused . | . . . Traps Extracted . | . . . Installed . | . . . Triggered . | . . . Machines | -11 -10 -10 ---------- Run | Yrd Mat Min Machines Disabled . | . . . Max in Single Turn . | . . . Machines Repaired . | . . . Machines Dismantled . | . . . Machines Sabotaged . | . . . Overloaded Fab Kills . | . . . Hacking | -11 -10 -10 --------- Run | Yrd Mat Min Machines Accessed 5 | . 5 . Terminals 4 | . 4 . Fabricators . | . . . Repair Stations . | . . . Recycling Units 1 | . 1 . Scanalyzers . | . . . Garrison Access . | . . . Total Hacks 19 | . 19 . Successful 8 | . 8 . Failed 11 | . 11 . Catastrophic . | . . . Database Lockouts . | . . . Manual 2 | . 2 . Terminals 17 | . 17 . Fabricators . | . . . Repair Stations . | . . . Recycling Units 2 | . 2 . Scanalyzers . | . . . Garrison Access . | . . . Terminal Hacks 7 | . 7 . Record 1 | . 1 . Prototype ID Bank 2 | . 2 . Unreport Threat 1 | . 1 . Hauler Manifests 1 | . 1 . Zone Layout 2 | . 2 . Fabricator Hacks . | . . . Repair Station Hacks . | . . . Recycling Unit Hacks . | . . . Scanalyzer . | . . . Garrison Access Hacks . | . . . Unauthorized Hacks 1 | . 1 . Terminals . | . . . Fabricators . | . . . Repair Stations . | . . . Recycling Units 1 | . 1 . Reject 1 | . 1 . Scanalyzers . | . . . Garrison Access . | . . . Data Cores Recovered 1 | . 1 . Used 1 | . 1 . Hacking Detections 3 | . 3 . Full Trace Events 1 | . 1 . Feedback Events . | . . . Feedback Blocked . | . . . Robot Schematics Acquired . | . . . Robots Built . | . . . Authchips . | . . . Time . | . . . Total Robot Build Rating . | . . . Part Schematics Acquired . | . . . Parts Built . | . . . Authchips . | . . . Time . | . . . Total Part Build Rating . | . . . Parts Repaired . | . . . Time . | . . . Parts Recycled . | . . . Recycled Matter . | . . . Retrieved Matter . | . . . Retrieved Components . | . . . Parts Scanalyzed . | . . . Part Schematics Acquired . | . . . Parts Damaged . | . . . Bothacking | -11 -10 -10 ------------ Run | Yrd Mat Min Used RIF Installer . | . . . Robots Hacked . | . . . Non-combat . | . . . Combat . | . . . Robot Hacks Applied . | . . . Relay Couplers Released . | . . . Fabnet Peak Effective % . | . . . Robots Rewired . | . . . Allies Hacked . | . . . Hacks Repelled . | . . . Allies | -11 -10 -10 -------- Run | Yrd Mat Min Total Allies . | . . . Largest Group . | . . . Highest-Rated Group . | . . . Highest-Rated Ally . | . . . Total Orders . | . . . Ally Attacks . | . . . Total Damage . | . . . Kills . | . . . Allies Corrupted . | . . . Allies Melted . | . . . Intel | -11 -10 -10 ------- Run | Yrd Mat Min Robot Analysis Total . | . . . Derelict Logs Recovered 1 | . . 1 Drone Launches . | . . . Drone Recoveries . | . . . Exploration | -11 -10 -10 ------------- Run | Yrd Mat Min Turns Passed 670 | 68 542 60 Spaces Moved 680 | 46 498 136 Core 9 | 9 . . Treads . | . . . Legs . | . . . Wheels 124 | 37 87 . Hover . | . . . Flight 547 | . 411 136 Fastest Speed 32 | 50 32 32 Average Speed 69 | 74 79 34 Slowest Speed 280 | 80 280 112 Overloaded Moves . | . . . Propulsion Burnouts . | . . . Robots Hopped . | . . . Cave-ins Triggered . | . . . Exploration Rate (%) 41 | 3 74 46 Regions Visited 2 Branch Regions 1 Pre-discovered Areas 1 | . . 1 Known Exits Taken 1 | . 1 . Unknown Exits Taken 1 | 1 . . Scrap Searched 1 | . . 1 Spaces Dug . | . . . Terrain Destroyed 61 | . 34 27 Melee . | . . . Projectile . | . . . AOE 61 | . 34 27 Terrain Rammed . | . . . Walls Destroyed . | . . . Machines Disabled . | . . . Actions | -11 -10 -10 --------- Run | Yrd Mat Min Total 785 | 65 575 145 Wait 3 | . 1 2 Move 678 | 45 497 136 Hop . | . . . Pick Up 18 | 7 10 1 Fast Attach . | . . . Attach 12 | 5 6 1 Detach . | . . . Swap 4 | . 4 . Drop 7 | . 6 1 Fire 63 | 8 51 4 Melee . | . . . Ram . | . . . Kick . | . . . Crush . | . . . Escape Stasis . | . . . Rewire . | . . . Trap . | . . . Miscellaneous . | . . . Route ------- -11/Scrapyard -10/Materials (discovered 4 exits: *Mat x3 / *Min) -10/Mines (discovered 1 exit: *Mat) History --------- Turn | Location | Event 38 | -11/Scrapyard | Discovered new exit (range 15) 69 | -11/Scrapyard | Entered Materials 240 | -10/Materials | Discovered new exit (range 10) 306 | -10/Materials | Identified exit to Materials 402 | -10/Materials | Discovered exit to Materials (range 16) 553 | -10/Materials | Discovered exit to Materials (range 13) 593 | -10/Materials | Discovered new exit (range 12) 594 | -10/Materials | Build established: Mutant 609 | -10/Materials | Identified exit to Mines 611 | -10/Materials | Entered Mines 642 | -10/Mines | Discovered exit to Materials (range 15) 648 | -10/Mines | Received a Rocket Launcher from a helpful Derelict 653 | -10/Mines | Assembled infested the area 657 | -10/Mines | Learned location of Storage (-8) 666 | -10/Mines | Core integrity fell below 50% 671 | -10/Mines | Core integrity fell below 20% 671 | -10/Mines | Destroyed by D-53 Grenadier with Mini Grenade Launcher Last Messages --------------- CG-UD7(g): "Need a small hole in the wall? Leave that to the mining laser wimps, I say!" CG-UD7(g): "Would you like a rocket launcher? I know I would if I were you, so I'm going to lend you mine." CG-UD7(g) slips back into the shadows. Acquired Rocket Launcher. ALERT: Infestation in the mines, dispatching Demolisher response squad. Acquired derelict log, extracted data. World map updated: -8/Storage. Searching scrap... Found Aluminum Leg. Found 25 Matter. Acquired 5 matter. C-30 ARC bursts open, deploying its payload. D-53 Grenadier unfolds itself. Hacking Suite destroyed. Lgt. Nuclear Core destroyed. The unstable cave ceiling collapses. Grenade Launcher destroyed. VTOL Module destroyed. Map ----- +----------------------------------------------------+ | ?????????????????????????????????????????????????# | | ?????????????????????????????????????#####???????# | | ????????????????????????????????????## ##??????# | | ????????????????????????????????????# ######## | | ????????????????????????????????????# | | ???????????????????????????????????## | | ????????????????????????????????#### ######## | | ?????????????????????????????? # ##??????? | | ??????????##?????????????????# """ ##???????? | | ??????? ## ??????????????# """ #????????? | | ??????? ???????????## """ ####?????? | | ??????# ????????? ## ##????? | | ??????? ????????? ??# ### #####? | | ????????? % ??????? ???## #??##### #? | | ??????????? * ????? ?????# #???????## #? | | ????????????? ??? #?????# #????????## ##? | | ??????????????? ### #?????? #????###??## ##?? | | ????????????????? ??????? ##??## #??# #??? | | ??????????????????# #???????# #??# #?# #??? | | ??????????????????# #????### #??# ## #??? | | ??????????????????#%###### #???# # #?## | | ??????????????????#=# #?????# ## | | ??????????????????# #??????## | | ??????????????????# #???????# | | ??????????????????### #???????# # | | ????????????????????# @ #???????## ## | | ????????????????????# ##????????#### #? | | ????????????????????## #????????????## #? | | ?????????????????????# #?????????????## #? | | ??????????????????###### #?????######???# #? | | ??????????? d ?????# ##### #? | | ??????????????????##### ????# #? | | ??????????????????????## % ???## ##? | | ?????????????????????#### d #???## ##? | | ?????????????????????# ##????## ## #? | | ?????????????????????# #??????# ### # | | ?????????????????????# ## #??##### #?## # | | ?????????????????????###??# #### # #??## ## | | ???????????????????####????# ## #???####? | | ??????????????????## #??## """ #???????? | | ?????????????????## ### """ #??????? | | ????????????????## """ #??????? | | ????????????????# < ##??????? | | ????????? #### #######???????? | | ????????? ???### ###?????????????? | | ??????????######### ??????#####???????????????? | | ??????????????????### ??????????????????????????? | | ????????????????????##???????????????????????????? | | ?????????????????????????????????????????????????? | | | +----------------------------------------------------+ Best States ------------- Heat Dissipation 25 Energy Generation 14 Energy Capacity 160 Matter Stores 300 Matter Capacity 300 Sight Range 16 Terrain Scan Density 10 Evasion (%) 63 Offensive Hacking 10 Item Schematics ----------------- None Robot Schematics ------------------ None Fabricated ------------ Nothing Alien Tech Used ----------------- None Achievements -------------- None Challenges ------------ None Game ------ Seed FortressArmageddonRailgun Manual? 0 Play Time 00:13:43 Cumulative 7.7 hours Start 2024.04.01 @ 08:31:52 End 2024.04.01 @ 08:46:14 Sessions 1 Manual Loads 0 Difficulty Rogue Special Mode None Game No. 7 Rogue 5 Adventurer 2 Explorer 0 Win Type - Total 0 Types 0/0/0/0/0/0/0/0/0 Lore% 6 Gallery% 16 Achievement% 17 Wizard Run 0 Options --------- Layout 0 ASCII 0 Keyboard 0 Movement Mouse Keybinds 0 Fullscreen 1 Font 18/SmallcapsGlow Map View 38x25 Zoom Use 100% Tactical HUD 0 Map Filters NONE Filters NONE Steam 1 RUN: b844a479-0da9-48c4-90b1-65b572b2fa80